bitfinex-derivatives/quotes_SOLF0:USTF0_20260121
["timestamp","ask_amount","ask_price","bid_price","bid_amount"]
[1769025702560,18.39371588,131.3,131.18,106.8115]
[1769025702954,6.8602,131.31,131.23,6.8639]
[1769025703160,25.25391588,131.31,131.23,6.8639]
[1769025703361,6.8625,131.26,131.18,6.8663]
[1769025703559,18.39371588,131.29,131.17,106.8222]
[1769025704464,18.39371588,131.29,131.2,106.7945]
[1769025704967,25.25481588,131.29,131.22,6.8644]
[1769025705168,18.39371588,131.29,131.2,106.7936]
[1769025705367,106.6989,131.33,131.2,106.7936]
[1769025705368,18.39371588,131.32,131.2,106.7936]
[1769025705668,25.25311588,131.32,131.23,6.8638]
[1769025705859,18.39371588,131.32,131.23,6.8638]
[1769025706261,6.8604,131.3,131.22,6.8644]
[1769025707064,15.66644084,131.29,131.2,6.8652]
[1769025707466,15.66644084,131.29,131.15,106.8332]
[1769025707661,6.8625,131.26,131.19,6.866]
[1769025708170,15.66644084,131.28,131.19,6.866]
[1769025708662,22.52824084,131.28,131.19,6.866]
[1769025708872,15.66644084,131.28,131.2,6.8654]
[1769025709078,15.66644084,131.28,131.16,106.8294]
[1769025709270,22.52804084,131.28,131.2,6.8653]
[1769025709669,15.66644084,131.31,131.19,106.8043]
[1769025709973,6.861,131.29,131.22,6.8644]
[1769025710965,6.8614,131.28,131.18,106.8099]
[1769025711868,6.8614,131.28,131.21,6.865]
[1769025712169,6.8614,131.28,131.13,106.8494]
[1769025712170,15.66644084,131.28,131.13,112.91847644]
[1769025712872,15.66644084,131.25,131.13,106.8494]
[1769025713684,15.66644084,131.25,131.15,106.8365]
[1769025713685,22.52984084,131.25,131.15,106.8365]
[1769025713884,15.66644084,131.25,131.16,106.8239]
[1769025714088,15.66644084,131.29,131.16,106.8239]
[1769025714587,15.66644084,131.27,131.16,106.8239]
[1769025714984,6.8624,131.26,131.19,6.866]
[1769025715491,6.8635,131.24,131.13,106.8494]
[1769025715890,15.66644084,131.25,131.13,106.8494]
[1769025716992,6.8642,131.23,131.16,6.8671]
[1769025717189,15.66644084,131.25,131.16,6.8671]
[1769025717396,15.66644084,131.25,131.15,106.8347]
[1769025718100,22.52944084,131.25,131.17,6.867]
[1769025719390,22.54307325,131.27,131.16,106.8258]
[1769025719593,16.45157274,131.27,131.16,106.8258]
[1769025720291,6.8625,131.26,131.19,6.866]
[1769025720489,6.8625,131.26,131.16,106.8304]
[1769025720490,16.45157274,131.26,131.16,106.8304]
[1769025720791,16.45157274,131.26,131.17,106.8218]
[1769025720991,6.8618,131.28,131.18,106.8134]
[1769025721395,6.862,131.27,131.19,6.8656]
[1769025721593,16.45157274,131.29,131.19,106.8014]
[1769025721897,16.45157274,131.29,131.18,106.814]
[1769025722287,16.45157274,131.26,131.15,106.8386]
[1769025722596,16.45157274,131.26,131.14,106.8414]
[1769025722984,23.31587274,131.23,131.15,6.8681]
[1769025723289,16.45157274,131.23,131.14,106.8463]
[1769025723589,16.45157274,131.23,131.11,106.8706]
[1769025723994,23.31677274,131.21,131.11,106.8706]
[1769025724399,16.45157274,131.21,131.12,106.8623]
[1769025724999,112.85730051,131.24,131.12,106.8623]
[1769025725000,16.45157274,131.23,131.16,6.8676]
[1769025725198,16.45157274,131.23,131.13,106.8509]
[1769025725388,16.45157274,131.23,131.12,106.8623]
[1769025725595,16.45157274,131.23,131.13,106.8537]
[1769025725792,23.47666995,131.27,131.09,6.09150051]
[1769025725992,106.7184,131.3,131.09,6.09150051]
[1769025725993,16.45157274,131.25,131.17,6.8667]
[1769025726297,16.45157274,131.25,131.12,106.8607]
[1769025726497,6.8639,131.24,131.16,6.8673]
[1769025726697,23.31547274,131.24,131.16,6.8673]
[1769025727300,23.31547274,131.24,131.17,6.867]
[1769025727501,23.31547274,131.24,131.14,106.8443]
[1769025727691,23.31547274,131.24,131.15,6.8678]
[1769025727894,6.09150051,131.26,131.15,6.8678]
[1769025727895,16.45157274,131.23,131.15,6.8678]
[1769025728800,16.45157274,131.23,131.16,6.8675]
[1769025729802,23.31577274,131.23,131.15,6.8679]
[1769025730095,23.31577274,131.23,131.13,106.8496]
[1769025730998,23.31577274,131.23,131.16,6.8675]
[1769025731200,16.45157274,131.21,131.11,106.8659]
[1769025731406,16.45157274,131.21,131.11,106.8692]
[1769025731698,16.45157274,131.21,131.13,6.8689]
[1769025731899,16.45157274,131.21,131.12,106.8628]
[1769025732495,16.45157274,131.21,131.13,6.8688]
[1769025732694,16.45157274,131.21,131.11,106.8692]
[1769025732897,23.31797274,131.19,131.11,6.8701]
[1769025733400,16.45157274,131.18,131.11,6.8701]
[1769025733697,16.45157274,131.17,131.07,106.8979]
[1769025734301,16.45157274,131.17,131.11,6.87]
[1769025734500,112.87030051,131.23,131.1,106.8768]
[1769025734704,16.45157274,131.21,131.1,106.8768]
[1769025734906,16.45157274,131.19,131.11,6.8698]
[1769025735202,16.45157274,131.19,131.1,106.8768]
[1769025735511,16.45157274,131.19,131.11,106.8684]
[1769025735700,16.45157274,131.19,131.1,106.8768]
[1769025736297,22.71023674,131.22,131.12,106.862]
[1769025736596,15.84533674,131.21,131.11,106.8701]
[1769025737303,22.71103674,131.2,131.12,6.8695]
[1769025737807,22.71103674,131.2,131.1,106.8768]
[1769025738000,6.8662,131.19,131.1,106.8768]
[1769025738211,15.84533674,131.2,131.1,106.8768]
[1769025738399,15.84533674,131.19,131.06,106.9073]
[1769025738605,15.84533674,131.17,131.07,106.9028]
[1769025739002,15.84533674,131.17,131.06,106.9073]
[1769025739202,15.84533674,131.16,131.09,6.8712]
[1769025739513,15.84533674,131.16,131.07,106.9002]
[1769025739905,22.71303674,131.16,131.07,106.9002]
[1769025740104,6.09150051,131.2,131.08,106.891]
[1769025740306,15.84533674,131.19,131.08,106.891]
[1769025740507,22.71253674,131.17,131.1,6.8707]
[1769025740710,15.84533674,131.17,131.08,106.8954]
[1769025741812,15.84533674,131.17,131.09,106.8875]
[1769025742016,15.84533674,131.19,131.09,106.8875]
[1769025742506,15.84533674,131.19,131.13,6.8692]
[1769025742901,15.84533674,131.19,131.09,106.8875]
[1769025742902,15.84533674,131.19,131.11,6.8702]
[1769025743100,15.84533674,131.19,131.09,106.8872]
[1769025743705,15.84533674,131.19,131.13,6.8691]
[1769025744806,15.84533674,131.19,131.1,106.8794]
[1769025745005,15.84533674,131.22,131.13,106.8529]
[1769025746020,15.84533674,131.22,131.16,6.8674]
[1769025746212,15.84533674,131.22,131.11,106.8706]
[1769025746913,15.84533674,131.19,131.08,106.8908]
[1769025747329,6.8671,131.17,131.07,106.9024]
[1769025747517,15.84533674,131.17,131.06,106.9067]
[1769025748115,6.8678,131.16,131.09,6.8712]
[1769025748517,22.71313674,131.16,131.09,6.8712]
[1769025749617,15.84533674,131.15,131.04,106.928]
[1769025749913,15.84533674,131.14,131.01,106.9483]
[1769025750118,15.84533674,131.12,131.0,106.9574]
[1769025750313,15.84533674,131.12,131.02,106.9444]
[1769025750715,22.71543674,131.12,131.04,6.8738]
[1769025751522,15.84533674,131.12,131.02,106.9419]
[1769025751824,15.84533674,131.12,131.01,106.9468]
[1769025752219,15.84533674,131.12,131.02,106.9415]
[1769025752422,15.84533674,131.15,131.03,106.9331]
[1769025752814,22.71383674,131.15,131.06,6.8726]
[1769025753122,15.84533674,131.15,131.06,6.8726]
[1769025754014,15.84533674,131.18,131.06,106.9074]
[1769025754215,15.84533674,131.18,131.07,106.9013]
[1769025754422,15.84533674,131.18,131.1,6.8706]
[1769025754616,15.84533674,131.16,131.05,106.9138]
[1769025754931,15.84533674,131.15,131.03,106.9331]
[1769025755218,15.84533674,131.22,131.13,106.8522]
[1769025756021,15.84533674,131.22,131.16,6.8675]
[1769025756522,15.84533674,131.22,131.11,106.8702]
[1769025756720,15.84533674,131.2,131.07,112.99150051]
[1769025756919,15.84533674,131.2,131.07,106.9]
[1769025757117,112.87590051,131.22,131.1,6.8706]
[1769025757118,22.71203674,131.18,131.1,6.8706]
[1769025757325,15.84533674,131.18,131.1,106.8788]
[1769025757624,15.84533674,131.22,131.11,106.8702]
[1769025757820,6.8651,131.21,131.14,6.8686]
[1769025758022,15.84533674,131.2,131.09,106.8863]
[1769025758926,15.84533674,131.18,131.06,106.9119]
[1769025759228,15.84533674,131.16,131.01,106.9474]
[1769025759412,21.93683725,131.16,131.04,106.9268]
[1769025759724,15.84533674,131.16,131.05,106.9163]
[1769025759927,15.84533674,131.16,131.06,106.9115]
[1769025760617,15.84533674,131.16,131.06,6.8726]
[1769025760820,15.84533674,131.16,131.05,106.9163]
[1769025761427,15.84533674,131.16,131.06,106.9103]
[1769025761622,15.84533674,131.15,131.02,106.9439]
[1769025761921,15.84533674,131.12,131.0,106.956]
[1769025762224,15.84533674,131.1,130.99,106.963]
[1769025762725,15.84533674,131.1,130.97,106.985]
[1769025762921,15.84533674,131.1,130.98,106.977]
[1769025763222,15.84533674,131.07,130.94,107.0042]
[1769025763526,15.84533674,131.07,130.96,106.9924]
[1769025763826,22.71643674,131.1,131.0,6.8758]
[1769025764018,15.84533674,131.09,131.0,6.8758]
[1769025764728,28.80673725,131.12,131.01,106.9504]
[1769025764921,15.84533674,131.11,131.01,106.9525]
[1769025765424,15.84533674,131.11,131.02,106.9414]
[1769025766025,16.10043169,131.14,131.04,6.8737]
[1769025766933,16.10043169,131.14,131.05,106.9195]
[1769025768023,16.10043169,131.14,131.07,6.8722]
[1769025768519,16.10043169,131.14,131.08,6.8716]
[1769025768721,16.10043169,131.17,131.07,106.8999]
[1769025769824,22.96633169,131.2,131.09,106.884]
[1769025770017,22.96633169,131.2,131.1,106.877]
[1769025770415,16.10043169,131.2,131.1,106.877]
[1769025770618,16.10043169,131.2,131.11,106.8708]
[1769025770824,16.10043169,131.2,131.1,106.877]
[1769025771223,16.10043169,131.2,131.11,6.8699]
[1769025771821,16.10043169,131.19,131.11,6.8699]
[1769025772127,16.10043169,131.15,131.03,106.931]
[1769025772523,6.8693,131.13,131.03,106.931]
[1769025772924,16.10043169,131.12,131.01,106.9491]
[1769025774030,22.97053169,131.12,131.03,6.8744]
[1769025774417,22.97053169,131.12,131.04,6.8737]
[1769025774619,16.10043169,131.12,131.02,106.942]
[1769025774936,16.10043169,131.11,131.01,6.8752]
[1769025775630,16.10043169,131.12,131.0,106.9578]
[1769025775833,16.10043169,131.12,131.02,106.9422]
[1769025776330,16.10043169,131.12,131.05,6.8732]
[1769025777127,16.10043169,131.11,131.0,106.9578]
[1769025777340,16.10043169,131.11,131.01,106.9504]
[1769025777634,16.10043169,131.11,131.02,106.9446]
[1769025777818,16.10043169,131.11,131.04,6.8738]
[1769025778018,16.10043169,131.11,131.01,106.9504]
[1769025778630,16.10043169,131.15,131.03,106.9351]
[1769025779137,16.10043169,131.12,131.05,6.8733]
[1769025780036,22.97033169,131.12,131.03,6.874]
[1769025780438,15.10517639,131.15,131.04,106.9268]
[1769025780828,15.10517639,131.13,131.02,106.9418]
[1769025781136,15.10517639,131.13,131.0,106.9578]
[1769025781535,15.10517639,131.1,131.03,6.8742]
[1769025781939,15.10517639,131.1,131.0,106.9578]
[1769025782233,15.10517639,131.08,131.0,106.96]
[1769025782625,15.10517639,131.11,131.03,6.8741]
[1769025782938,15.10517639,131.11,130.98,106.9735]
[1769025783133,15.10517639,131.07,130.96,106.9875]
[1769025783635,15.10517639,131.07,130.98,106.9731]
[1769025784222,15.10517639,131.07,130.99,6.8761]
[1769025784622,15.10517639,131.05,130.94,107.0025]
[1769025784825,15.10517639,131.05,130.96,106.9936]
[1769025785037,15.10517639,131.05,130.94,107.0025]
[1769025785237,15.10517639,131.05,130.96,106.9932]
[1769025785833,15.10517639,131.05,130.99,6.8765]
[1769025786038,21.97747639,131.08,130.99,6.8765]
[1769025786240,15.10517639,131.07,130.99,6.8765]
[1769025786940,15.10517639,131.05,130.93,107.0154]
[1769025787126,15.10517639,131.05,130.94,107.0096]
[1769025787841,21.97897639,131.05,130.94,113.8884]
[1769025788140,15.10517639,131.04,130.94,6.8788]
[1769025789142,15.10517639,131.04,130.95,6.8782]
[1769025789750,15.10517639,131.04,130.96,6.8778]
[1769025790648,15.10517639,131.04,130.94,6.879]
[1769025790829,15.10517639,131.04,130.94,113.8887]
[1769025791227,15.10517639,131.04,130.95,6.8783]
[1769025791441,6.8732,131.06,130.95,113.8789]
[1769025791633,15.10517639,131.04,130.95,6.8783]
[1769025792348,15.10517639,131.04,130.95,113.8795]
[1769025792643,15.10517639,131.04,130.94,107.0072]
[1769025793444,15.10517639,131.04,130.95,6.8784]
[1769025793637,15.10517639,131.04,130.95,107.001]
[1769025794342,15.10517639,131.06,130.96,106.991]
[1769025794543,15.10517639,131.08,130.97,106.9846]
[1769025795045,21.97727639,131.08,130.99,6.8763]
[1769025796132,15.34218523,131.06,130.97,6.8774]
[1769025796343,15.34218523,131.06,130.96,106.9906]
[1769025797044,15.34218523,131.08,130.99,6.8761]
[1769025798547,6.8712,131.1,131.0,106.9578]
[1769025798842,15.34218523,131.11,131.01,106.9528]
[1769025799043,15.34218523,131.11,131.02,106.9429]
[1769025799431,15.34218523,131.11,131.05,6.8732]
[1769025799645,15.34218523,131.09,130.98,106.9761]
[1769025800542,15.34218523,131.09,131.01,106.9511]
[1769025801248,15.34218523,131.09,130.98,106.9761]
[1769025802045,15.34218523,131.06,130.99,6.8763]
[1769025803038,6.8725,131.07,131.0,6.8759]
[1769025804250,22.21398523,131.09,131.01,6.8754]
[1769025805143,22.21398523,131.09,131.02,6.8746]
[1769025805449,113.96666176,131.12,130.96,113.09524812]
[1769025805450,15.34218523,131.12,131.0,106.9609]
[1769025805740,15.34218523,131.15,131.04,106.927]
[1769025805942,6.8689,131.14,131.07,6.8722]
[1769025806146,15.34218523,131.15,131.07,6.8722]
[1769025806445,22.20808523,131.2,131.11,6.8698]
[1769025806654,15.34218523,131.19,131.08,106.8956]
[1769025806950,15.34218523,131.19,131.09,106.8856]
[1769025808042,15.34218523,131.19,131.11,6.87]
[1769025808243,15.34218523,131.19,131.1,106.8788]
[1769025808439,15.34218523,131.19,131.11,106.8681]
[1769025808638,15.34218523,131.22,131.12,106.8625]
[1769025809240,15.34218523,131.22,131.15,6.8679]
[1769025809748,6.8658,131.2,131.11,6.8699]
[1769025810046,15.34218523,131.19,131.11,6.8699]
[1769025811141,15.34218523,131.18,131.09,6.871]
[1769025811344,15.34218523,131.18,131.08,106.8958]
[1769025811550,15.34218523,131.18,131.06,106.9116]
[1769025812043,15.34218523,131.16,131.08,6.8714]
[1769025812854,15.34218523,131.16,131.09,6.871]
[1769025813950,15.34218523,131.16,131.05,106.9171]
[1769025813951,15.34218523,131.16,131.07,6.8722]
[1769025814553,15.34218523,131.14,131.05,6.873]
[1769025814862,15.34218523,131.14,131.02,106.9427]
[1769025815256,22.21148523,131.13,131.05,6.8732]
[1769025815550,15.34218523,131.13,131.04,106.924]
[1769025817053,15.34218523,131.13,131.06,6.8727]
[1769025817942,6.8684,131.15,131.07,6.8722]
[1769025818349,22.21058523,131.15,131.07,6.8722]
[1769025819938,15.34218523,131.14,131.07,6.8722]
[1769025820154,22.21108523,131.14,131.04,106.924]
[1769025820949,6.868,131.16,131.06,106.9093]
[1769025821154,22.21018523,131.16,131.06,106.9093]
[1769025821458,15.34218523,131.16,131.08,106.8958]
[1769025821850,15.34218523,131.19,131.11,6.8702]
[1769025822846,15.34218523,131.19,131.08,106.8958]
[1769025822847,15.34218523,131.17,131.03,106.9305]
[1769025823155,15.34218523,131.16,131.03,106.9305]
[1769025823547,15.34218523,131.16,131.02,106.9387]
[1769025823548,15.34218523,131.14,131.02,106.9387]
[1769025824048,15.34218523,131.11,131.03,6.8741]
[1769025824244,15.34218523,131.11,131.0,106.9585]
[1769025825949,112.96524812,131.13,130.98,106.9712]
[1769025825950,15.12222187,131.1,130.99,106.9685]
[1769025826554,15.12222187,131.09,131.01,6.8753]
[1769025826750,15.12222187,131.09,130.96,106.9886]
[1769025827056,15.12222187,131.08,130.95,107.0018]
[1769025827354,15.12222187,131.05,130.94,107.0052]
[1769025828857,15.12222187,131.05,130.96,106.9935]
[1769025829259,15.12222187,131.08,130.97,106.9849]
[1769025829556,21.99422187,131.08,130.99,6.8764]
[1769025830058,21.99422187,131.08,131.0,6.8758]
[1769025831358,15.12222187,131.07,131.0,6.8758]
[1769025831557,15.12222187,131.07,130.97,106.9849]
[1769025831759,15.12222187,131.06,130.96,106.9935]
[1769025831960,15.12222187,131.06,130.97,6.8772]
[1769025832364,15.12222187,131.04,130.91,107.0293]
[1769025832565,15.12222187,131.04,130.93,6.8794]
[1769025833066,15.12222187,131.02,130.91,107.0293]
[1769025833366,15.12222187,131.02,130.95,6.8785]
[1769025833872,15.12222187,131.02,130.93,6.8795]
[1769025834358,15.12222187,131.02,130.94,6.8788]
[1769025834766,15.12222187,131.01,130.91,107.0293]
[1769025835468,15.12222187,131.0,130.93,6.8795]
[1769025835662,15.12222187,131.0,130.9,107.0387]
[1769025835862,21.99832187,131.0,130.92,6.8801]
[1769025836857,15.12222187,131.0,130.93,6.8795]
[1769025837054,15.12222187,131.0,130.92,107.026]
[1769025837862,15.12222187,131.0,130.94,6.879]
[1769025840176,14.29035753,131.03,130.96,6.878]
[1769025841761,21.16365753,131.06,130.95,106.9982]
[1769025841973,14.29035753,131.05,130.95,106.9982]
[1769025842164,14.29035753,131.05,130.97,106.9845]
[1769025842370,106.8635,131.12,130.99,106.9659]
[1769025842867,6.8715,131.09,131.0,6.8756]
[1769025843072,112.99923064,131.1,131.0,6.8756]
[1769025843367,112.99923064,131.1,130.97,106.9845]
[1769025843569,6.8724,131.07,130.99,6.8765]
[1769025843963,112.99923064,131.1,130.97,106.9829]
[1769025844358,14.29035753,131.06,131.0,6.8757]
[1769025845265,21.16325753,131.06,130.98,6.8767]
[1769025845573,14.29035753,131.05,130.93,107.0148]
[1769025846167,14.29035753,131.02,130.95,6.8785]
[1769025847768,14.29035753,131.02,130.92,107.0232]
[1769025847769,21.16555753,131.02,130.92,107.0232]
[1769025847970,14.29035753,131.02,130.93,107.017]
[1769025848177,14.29035753,131.05,130.98,6.877]
[1769025848678,21.16385753,131.05,130.98,6.877]
[1769025849370,6.8727,131.07,130.97,106.985]
[1769025850168,14.29035753,131.08,131.01,6.8753]
[1769025850475,106.8766,131.11,131.0,106.9556]
[1769025850476,14.29035753,131.11,131.0,106.9556]
[1769025850770,14.29035753,131.11,131.02,106.9445]
[1769025851374,6.8696,131.13,131.05,6.8732]
[1769025851568,6.8696,131.13,131.03,106.9363]
[1769025851775,14.29035753,131.14,131.04,106.9269]
[1769025851976,14.29035753,131.14,131.03,106.9363]
[1769025852568,14.29035753,131.14,131.04,106.9254]
[1769025853872,21.15915753,131.14,131.05,6.873]
[1769025854273,21.15915753,131.14,131.03,106.9363]
[1769025854668,21.15915753,131.14,131.02,113.06073064]
[1769025854669,14.29035753,131.13,131.02,113.06073064]
[1769025854870,14.29035753,131.13,130.98,120.7257]
[1769025854871,14.29035753,131.11,130.99,106.968]
[1769025855576,14.47982145,131.08,130.96,106.988]
[1769025855881,6.8725,131.07,130.99,6.8764]
[1769025856188,21.35232145,131.07,130.99,6.8764]
[1769025856881,21.35282145,131.06,130.99,6.8764]
[1769025857272,14.47982145,131.06,130.99,6.8764]
[1769025857675,14.47982145,131.06,130.96,106.9921]
[1769025857880,14.47982145,131.06,130.97,106.9833]
[1769025858888,14.47982145,131.06,130.99,6.8765]
[1769025860484,21.35152145,131.09,130.99,106.9676]
[1769025861179,14.47982145,131.07,130.95,106.9957]
[1769025861381,14.47982145,131.07,130.96,106.9932]
[1769025861580,14.47982145,131.07,130.95,106.9957]
[1769025861885,14.47982145,131.05,130.93,107.0127]
[1769025862282,14.47982145,131.05,130.95,107.0008]
[1769025862486,14.47982145,131.05,130.94,107.0068]
[1769025862877,21.35432145,131.03,130.95,6.8783]
[1769025863387,21.35432145,131.03,130.93,107.0127]
[1769025863788,14.47982145,131.03,130.94,107.0038]
[1769025864085,14.47982145,131.03,130.9,107.0375]
[1769025864282,14.47982145,131.01,130.91,107.0342]
[1769025864681,14.47982145,131.04,130.93,107.0161]
[1769025864883,14.47982145,131.02,130.95,6.8782]
[1769025865880,14.47982145,131.02,130.93,6.8794]
[1769025867090,14.47982145,131.01,130.93,6.8794]
[1769025867485,14.47982145,131.01,130.94,6.8791]
[1769025868690,14.47982145,131.04,130.95,6.8786]
[1769025869391,21.35442145,131.03,130.96,6.878]
[1769025869594,14.47982145,131.03,130.94,107.0066]
[1769025870492,14.47982145,131.03,130.97,6.8775]
[1769025870892,14.47982145,131.02,130.95,6.8784]
[1769025871290,14.47982145,131.05,130.94,107.01]
[1769025871493,14.47982145,131.03,130.92,107.0236]
[1769025872396,14.47982145,131.02,130.91,107.0311]
[1769025872891,21.35482145,131.02,130.94,6.8791]
[1769025873094,14.47982145,131.01,130.94,6.8791]
[1769025874296,21.35542145,131.01,130.94,6.8791]
[1769025874991,113.03943064,131.05,130.9,107.0372]
[1769025874992,21.35592145,131.0,130.9,107.0372]
[1769025875189,14.47982145,130.99,130.88,107.0552]
[1769025875695,21.35752145,130.97,130.86,107.0725]
[1769025875894,14.47982145,130.97,130.86,107.0725]
[1769025877802,14.47982145,130.96,130.84,107.0872]
[1769025878096,14.47982145,130.95,130.83,107.0986]
[1769025878287,14.47982145,130.94,130.86,6.8832]
[1769025878796,14.47982145,130.93,130.84,6.8844]
[1769025879094,14.47982145,130.93,130.82,107.1025]
[1769025879296,14.47982145,130.93,130.83,107.0997]
[1769025879597,14.47982145,130.93,130.86,6.8831]
[1769025879987,14.47982145,130.93,130.85,6.8838]
[1769025880193,14.47982145,130.93,130.84,107.0917]
[1769025880400,14.47982145,130.93,130.83,107.0997]
[1769025880596,14.47982145,130.93,130.85,6.8837]
[1769025881496,14.47982145,130.93,130.86,6.8833]
[1769025883196,14.47982145,130.92,130.84,6.8841]
[1769025883895,14.47982145,130.91,130.84,6.8841]
[1769025884200,14.47982145,130.91,130.82,6.8853]
[1769025884392,14.47982145,130.89,130.78,107.1379]
[1769025885202,14.47982145,130.89,130.81,6.8858]
[1769025885596,14.47982145,130.89,130.8,107.1209]
[1769025885793,14.47982145,130.89,130.82,107.1057]
[1769025886001,15.44574067,130.92,130.83,107.0985]
[1769025886802,15.44574067,130.92,130.86,6.8831]
[1769025888400,15.44574067,130.95,130.87,107.0668]
[1769025888599,15.44574067,130.98,130.88,107.0586]
[1769025888803,402.05373064,131.01,130.91,107.0311]
[1769025888804,304.42574067,131.01,130.91,107.0311]
[1769025889101,304.42574067,131.01,130.92,107.0256]
[1769025889503,15.44574067,131.0,130.9,107.0424]
[1769025890098,15.44574067,131.0,130.93,6.8795]
[1769025890300,288.98,131.01,130.92,107.0254]
[1769025890499,15.44574067,131.03,130.95,106.9996]
[1769025890699,15.44574067,131.03,130.96,106.9896]
[1769025890904,15.44574067,131.06,130.98,106.9764]
[1769025891097,15.44574067,131.06,130.95,106.9996]
[1769025891295,15.44574067,131.06,130.97,6.8774]
[1769025891999,15.44574067,131.05,130.94,107.0071]
[1769025892901,15.44574067,131.05,130.96,6.8778]
[1769025894305,28.43407131,131.08,130.96,106.9907]
[1769025894504,15.44574067,131.07,130.97,106.9839]
[1769025894900,15.44574067,131.07,130.98,6.8768]
[1769025895506,15.44574067,131.07,130.99,6.8763]
[1769025897303,15.44574067,131.07,130.99,106.9686]
[1769025898310,22.31684067,131.1,131.0,106.9608]
[1769025898506,15.44574067,131.09,131.0,106.9608]
[1769025899403,15.44574067,131.09,131.02,6.8748]
[1769025900207,22.12282164,131.12,131.03,6.8741]
[1769025900612,15.25272164,131.11,131.03,6.8741]
[1769025901814,15.25272164,131.1,131.03,6.8741]
[1769025902118,15.25272164,131.1,130.97,106.9838]
[1769025902312,15.25272164,131.07,130.94,107.0041]
[1769025902520,15.25272164,131.05,130.95,6.8783]
[1769025902909,15.25272164,131.02,130.93,6.8794]
[1769025903114,15.25272164,131.02,130.89,107.0453]
[1769025903416,15.25272164,131.02,130.9,107.0424]
[1769025903724,15.25272164,131.02,130.92,107.0264]
[1769025904612,15.25272164,131.02,130.94,6.879]
[1769025905519,106.9229,131.05,130.89,107.0453]
[1769025905520,15.25272164,131.01,130.9,107.0423]
[1769025906605,15.25272164,130.99,130.89,107.0453]
[1769025907214,15.25272164,130.99,130.91,6.8805]
[1769025907518,15.25272164,130.99,130.86,107.0699]
[1769025908314,15.25272164,130.96,130.85,107.0805]
[1769025908518,15.25272164,130.96,130.87,107.0661]
[1769025909013,15.25272164,130.99,130.89,107.0467]
[1769025909417,15.25272164,130.99,130.88,107.0568]
[1769025909820,22.12942164,130.99,130.9,6.8809]
[1769025910120,15.25272164,130.99,130.87,107.0661]
[1769025910317,15.25272164,130.96,130.88,6.8821]
[1769025911210,15.25272164,130.96,130.89,6.8817]
[1769025911922,15.25272164,130.99,130.89,107.0471]
[1769025912121,15.25272164,130.99,130.9,107.0378]
[1769025912614,15.25272164,130.99,130.92,6.8801]
[1769025913619,113.05310904,131.03,130.89,107.0471]
[1769025913620,22.12812164,131.02,130.91,107.028]
[1769025913824,15.25272164,131.01,130.91,107.028]
[1769025914720,15.25272164,131.01,130.94,6.879]
[1769025915023,15.25272164,131.04,130.92,107.0262]
[1769025916323,22.64806591,131.03,130.95,6.8785]
[1769025916511,15.77346591,131.03,130.94,107.0093]
[1769025917121,15.77346591,131.03,130.96,6.8778]
[1769025917516,15.77346591,131.03,130.94,107.0093]
[1769025917920,15.77346591,131.03,130.97,6.8775]
[1769025918519,22.64696591,131.05,130.97,6.8775]
[1769025918714,15.77346591,131.03,130.95,6.8782]
[1769025919120,15.77346591,131.03,130.96,6.878]
[1769025920029,22.64826591,131.03,130.94,6.8788]
[1769025920229,15.77346591,131.02,130.93,107.0156]
[1769025920625,15.77346591,131.02,130.91,107.028]
[1769025920828,15.77346591,131.02,130.95,6.8786]
[1769025921127,15.77346591,131.05,130.96,106.989]
[1769025921324,15.77346591,131.05,130.99,6.8764]
[1769025921521,22.64556591,131.08,130.97,106.9824]
[1769025921723,15.77346591,131.08,130.99,106.9673]
[1769025921926,288.88,131.09,131.02,6.8747]
[1769025922133,15.77346591,131.11,131.01,106.9501]
[1769025922432,259.65,131.14,131.05,6.8733]
[1769025922433,15.77346591,131.14,131.05,6.8733]
[1769025922630,15.77346591,131.14,131.01,106.9501]
[1769025923129,15.77346591,131.13,131.04,6.8738]
[1769025923326,15.77346591,131.11,131.0,106.9579]
[1769025923532,15.77346591,131.1,130.97,106.9803]
[1769025923834,15.77346591,131.1,130.96,106.9882]
[1769025923835,15.77346591,131.1,130.98,106.9738]
[1769025924921,15.77346591,131.09,130.98,106.9738]